{"text_format":"1","workbook":"xlsx","n_sheets":2,"sheets":["تصفية","أرصدة"],"not_rendered":{"charts":0,"images":0,"macros":1,"external_links":2,"defined_names":3,"comments":0,"pivot_tables":0},"unopened":[],"bounds":{"document_bytes":16777216,"sheet_cells":100000,"rows_first":2000,"rows_last":500,"rows_between":2000,"halvings":0,"cell_chars":16384,"cell_head_chars":4096},"cells_cut":0,"cells_raw":0,"read":"whole","date_system":"1900"}

{"sheet":"تصفية","index":0,"n_rows":111,"n_cols":14,"rows_kept":111,"cut":false,"hidden":false,"merged":[]}
[]
[]
[]
[]
[]
[]
[]
[]
[]
[]
[null,null,null," م","التاريخ","    القيمة       المدينة","الحســــــــاب المــديـن","    القيمة       الدائنـة","الحســــــــاب  الـدائــن","الــبــيـــــــــــــــــــــان","الـعـمـيــــــل","رصيـد الخزينــة ..","المدة"," قيمة القسط ---"]
[null,null,1,1,"2017-12-31",3760,"ارصدة دائنة",4378.5,"ارصدة دائنة",null,"صفاء محمد"]
[null,null,2,2,"2017-12-31",40,"ارصدة دائنة",230,"ارصدة دائنة",null,"صالح مسعد"]
[null,null,3,3,"2017-12-31",195,"ارصدة دائنة",209,"ارصدة دائنة",null,"سعاد محمد"]
[null,null,4,4,"2017-12-31",300,"ارصدة دائنة",370,"ارصدة دائنة",null,"تيسير"]
[null,null,5,5,"2017-12-31",0,"ارصدة دائنة",78,"ارصدة دائنة",null,"نسرين"]
[null,null,6,6,"2017-12-31",0,"ارصدة دائنة",28,"ارصدة دائنة",null,"محمد"]
[null,null,7,82,"2018-01-22",618.5,"ارصدة دائنة",618.5,"العملاء",null,"صفاء محمد"]
[null,null,8,94,"2018-01-29",105,"الخزينة",105,"ارصدة دائنة",null,"ايناس"]
[null,null,9,144,"2018-02-07",30,"الخزينة",30,"ارصدة دائنة",null,"تيسير"]
[null,null,10,168,"2018-02-12",890,"الخزينة",890,"ارصدة دائنة",null,"محمد"]
[null,null,11,184,"2018-02-23",20,"الخزينة",20,"ارصدة دائنة",null,"ايناس"]
[null,null,12,239,"2018-03-10",30,"الخزينة",30,"ارصدة دائنة",null,"تيسير"]
[null,null,13,321,"2018-04-07",30,"الخزينة",30,"ارصدة دائنة",null,"تيسير"]
[null,null,14,322,"2018-04-07",160,"ارصدة دائنة",160,"العملاء",null,"تيسير"]
[null,null,15,356,"2018-04-12",125,"ارصدة دائنة",125,"العملاء",null,"ايناس"]
[null,null,16,456,"2018-05-08",700.5,"الخزينة",700.5,"ارصدة دائنة",null,"تيسير"]
[null,null,17,549,"2018-06-10",30,"الخزينة",30,"ارصدة دائنة",null,"تيسير"]
[null,null,18,592,"2018-07-03",1000,"الخزينة",1000,"ارصدة دائنة",null,"صفاء محمد"]
[null,null,19,593,"2018-07-03",918,"ارصدة دائنة",918,"حسابات وسيطة",null,"محمد"]
[null,null,20,594,"2018-07-03",918,"حسابات وسيطة",918,"ارصدة دائنة",null,"صفاء محمد"]
[null,null,21,626,"2018-07-07",30,"الخزينة",30,"ارصدة دائنة",null,"تيسير"]
[null,null,22,672,"2018-08-02",159,"الخزينة",159,"ارصدة دائنة",null,"هدى"]
[null,null,23,680,"2018-08-02",37.5,"الخزينة",37.5,"ارصدة دائنة",null,"اسماء"]
[null,null,24,682,"2018-08-05",37,"ارصدة دائنة",37,"العملاء",null,"اسماء"]
[null,null,25,689,"2018-08-05",159.75,"ارصدة دائنة",159.75,"العملاء",null,"هدى"]
[null,null,26,728,"2018-08-08",30,"الخزينة",30,"ارصدة دائنة",null,"تيسير"]
[null,null,27,750,"2018-08-09",500,"الخزينة",500,"ارصدة دائنة",null,"صفاء محمد"]
[null,null,28,809,"2018-09-08",30,"الخزينة",30,"ارصدة دائنة",null,"تيسير"]
[null,null,29,810,"2018-09-08",102,"ارصدة دائنة",102,"العملاء",null,"تيسير"]
[null,null,30,811,"2018-09-08",48,"ارصدة دائنة",48,"الخزينة",null,"تيسير"]
[null,null,31,812,"2018-09-08",78,"ارصدة دائنة",78,"ايرادات ( غرامات )",null,"نسرين"]
[null,null,32,813,"2018-09-08",14,"ارصدة دائنة",14,"ايرادات ( غرامات )",null,"سعاد محمد"]
[null,null,33,909,"2018-10-20",75,"الخزينة",75,"ارصدة دائنة",null,"صباح"]
[null,null,34,1126,"2018-12-09",100.75,"الخزينة",100.75,"ارصدة دائنة",null,"عبير"]
[null,null,35,1146,"2018-12-11",500.37,"الخزينة",500.37,"ارصدة دائنة",null,"صفاء محمد"]
[null,null,36,1148,"2018-12-11",1385,"ارصدة دائنة",1385,"العملاء",null,"صفاء محمد"]
[null,null,37,1149,"2018-12-11",1333,"ارصدة دائنة",1333,"العملاء",null,"صفاء محمد"]
[null,null,38,1192,"2019-01-08",75,"ارصدة دائنة",75,"العملاء",null,"صباح"]
[null,null,39,1224,"2019-01-15",40,"الخزينة",40,"ارصدة دائنة",null,"صباح"]
[null,null,40,1239,"2019-01-26",77,"الخزينة",77,"ارصدة دائنة",null,"ايناس"]
[null,null,41,1330,"2019-03-05",230,"الخزينة",230,"ارصدة دائنة",null,"حنان"]
[null,null,42,1379,"2019-03-13",285.75,"الخزينة",285.75,"ارصدة دائنة",null,"محاسن"]
[null,null,43,1391,"2019-04-02",230,"ارصدة دائنة",230,"العملاء",null,"حنان"]
[null,null,44,1472,"2019-05-06",500,"الخزينة",500,"ارصدة دائنة",null,"صفاء محمد"]
[null,null,45,1516,"2019-05-20",77,"ارصدة دائنة",77,"العملاء",null,"ايناس"]
[null,null,46]
[null,null,47]
[null,null,48]
[null,null,49]
[null,null,50]
[null,null,51]
[null,null,52]
[null,null,53]
[null,null,54]
[null,null,55]
[null,null,56]
[null,null,57]
[null,null,58]
[null,null,59]
[null,null,60]
[null,null,61]
[null,null,62]
[null,null,63]
[null,null,64]
[null,null,65]
[null,null,66]
[null,null,67]
[null,null,68]
[null,null,69]
[null,null,70]
[null,null,71]
[null,null,72]
[null,null,73]
[null,null,74]
[null,null,75]
[null,null,76]
[null,null,77]
[null,null,78]
[null,null,79]
[null,null,80]
[null,null,81]
[null,null,82]
[null,null,83]
[null,null,84]
[null,null,85]
[null,null,86]
[null,null,87]
[null,null,88]
[null,null,89]
[null,null,90]
[null,null,91]
[null,null,92]
[null,null,93]
[null,null,94]
[null,null,95]
[null,null,96]
[null,null,97]
[null,null,98]
[null,null,99]
[null,null,100]

{"sheet":"أرصدة","index":1,"n_rows":111,"n_cols":7,"rows_kept":111,"cut":false,"hidden":false,"merged":[]}
[]
[]
[]
[null,null,null,null,"إجمالى مــدين","إجمالى دائـــن","الرصيد"]
[]
[null,null,null,null,{"$f":"SUBTOTAL(109,E10:E109)","v":8018.25},{"$f":"SUBTOTAL(109,F10:F109)","v":10005.369999999999},{"$f":"SUBTOTAL(109,G10:G109)","v":1987.12}]
[null,null,null,"ارصدة دائنة"]
[]
[null,"م",null,"العميــــــــل","مدين (عليه)","دائن (لــه)","الرصيد"]
[null,1,null,"صفاء محمد",7096.5,7796.87,{"$f":"F10-E10","v":700.36999999999989}]
[null,2,null,"صالح مسعد",40,230,190]
[null,3,null,"تيسير",610,1280.5,670.5]
[null,4,null,"هدى",159.75,159,-0.75]
[null,5,null,"اسماء",37,37.5,0.5]
[null,6,null,"صباح",75,115,40]
[null,7,null,"عبير",0,100.75,100.75]
[null,8,null,"محاسن",0,285.75,285.75]
[null,9,null,null,null,null,0]
[null,10,null,null,null,null,0]
[null,11,null,null,null,null,{"$f":"F20-E20","v":0}]
[null,12,null,null,null,null,0]
[null,13,null,null,null,null,0]
[null,14,null,null,null,null,0]
[null,15,null,null,null,null,0]
[null,16,null,null,null,null,0]
[null,17,null,null,null,null,0]
[null,18,null,null,null,null,0]
[null,19,null,null,null,null,0]
[null,20,null,null,null,null,0]
[null,21,null,null,null,null,0]
[null,22,null,null,null,null,0]
[null,23,null,null,null,null,0]
[null,24,null,null,null,null,0]
[null,25,null,null,null,null,0]
[null,26,null,null,null,null,0]
[null,27,null,null,null,null,0]
[null,28,null,null,null,null,0]
[null,29,null,null,null,null,0]
[null,30,null,null,null,null,0]
[null,31,null,null,null,null,0]
[null,32,null,null,null,null,0]
[null,33,null,null,null,null,0]
[null,34,null,null,null,null,0]
[null,35,null,null,null,null,0]
[null,36,null,null,null,null,0]
[null,37,null,null,null,null,0]
[null,38,null,null,null,null,0]
[null,39,null,null,null,null,0]
[null,40,null,null,null,null,0]
[null,41,null,null,null,null,0]
[null,42,null,null,null,null,0]
[null,43,null,null,null,null,0]
[null,44,null,null,null,null,0]
[null,45,null,null,null,null,0]
[null,46,null,null,null,null,0]
[null,47,null,null,null,null,0]
[null,48,null,null,null,null,0]
[null,49,null,null,null,null,0]
[null,50,null,null,null,null,0]
[null,51,null,null,null,null,0]
[null,52,null,null,null,null,0]
[null,53,null,null,null,null,0]
[null,54,null,null,null,null,0]
[null,55,null,null,null,null,0]
[null,56,null,null,null,null,0]
[null,57,null,null,null,null,0]
[null,58,null,null,null,null,0]
[null,59,null,null,null,null,0]
[null,60,null,null,null,null,0]
[null,61,null,null,null,null,0]
[null,62,null,null,null,null,0]
[null,63,null,null,null,null,0]
[null,64,null,null,null,null,0]
[null,65,null,null,null,null,0]
[null,66,null,null,null,null,0]
[null,67,null,null,null,null,0]
[null,68,null,null,null,null,0]
[null,69,null,null,null,null,{"$f":"F78-E78","v":0}]
[null,70,null,null,null,null,0]
[null,71,null,null,null,null,0]
[null,72,null,null,null,null,0]
[null,73,null,null,null,null,0]
[null,74,null,null,null,null,0]
[null,75,null,null,null,null,0]
[null,76,null,null,null,null,0]
[null,77,null,null,null,null,0]
[null,78,null,null,null,null,0]
[null,79,null,null,null,null,0]
[null,80,null,null,null,null,0]
[null,81,null,null,null,null,0]
[null,82,null,null,null,null,0]
[null,83,null,null,null,null,0]
[null,84,null,null,null,null,0]
[null,85,null,null,null,null,0]
[null,86,null,null,null,null,0]
[null,87,null,null,null,null,0]
[null,88,null,null,null,null,0]
[null,89,null,null,null,null,0]
[null,90,null,null,null,null,0]
[null,91,null,null,null,null,0]
[null,92,null,null,null,null,0]
[null,93,null,null,null,null,0]
[null,94,null,null,null,null,0]
[null,95,null,null,null,null,0]
[null,96,null,null,null,null,0]
[null,97,null,null,null,null,0]
[null,98,null,null,null,null,0]
[null,99,null,null,null,null,0]
[null,100,null,null,null,null,0]
[]
[null,null,null,null,null,null,"تمت بحمد الله"]